[Event "Early-Titled-Tuesday-Blitz-February-27-2024"]
[Site "Chess.com"]
[Date "2024.02.27"]
[Round "3"]
[White "Rurep26"]
[Black "Chopper1905"]
[Result "0-1"]
[WhiteElo "2701"]
[BlackElo "2933"]
[TimeControl "180+1"]
[EndTime "8:28:57 PST"]
[Termination "Chopper1905 won by resignation"]

1. d4 {[%clk 0:03:00.9]} 1... Nf6 {[%clk 0:02:59.1]} 2. Bf4 {[%clk 0:02:59.5]}
2... d6 {[%clk 0:02:58]} 3. e3 {[%clk 0:02:57.6]} 3... Nbd7 {[%clk 0:02:53.6]}
4. Nf3 {[%clk 0:02:57.1]} 4... Nh5 {[%clk 0:02:50.5]} 5. Bg5 {[%clk 0:02:54.7]}
5... h6 {[%clk 0:02:50.1]} 6. Bh4 {[%clk 0:02:55.6]} 6... g5 {[%clk 0:02:49.9]}
7. Nfd2 {[%clk 0:02:54.7]} 7... Ndf6 {[%clk 0:02:44.6]} 8. Be2 {[%clk
0:02:50.2]} 8... Ng7 {[%clk 0:02:32.5]} 9. Bg3 {[%clk 0:02:50]} 9... Nf5 {[%clk
0:02:33.2]} 10. Nc3 {[%clk 0:02:41.2]} 10... h5 {[%clk 0:02:30.8]} 11. h3 {[%clk
0:02:33.6]} 11... Nxg3 {[%clk 0:02:29.1]} 12. fxg3 {[%clk 0:02:34.5]} 12... d5
{[%clk 0:02:12]} 13. Nf3 {[%clk 0:02:25.7]} 13... g4 {[%clk 0:02:09.1]} 14. Ne5
{[%clk 0:02:18.8]} 14... gxh3 {[%clk 0:02:04.6]} 15. gxh3 {[%clk 0:02:19.7]}
15... c6 {[%clk 0:01:51.2]} 16. Qd3 {[%clk 0:02:14.9]} 16... Be6 {[%clk
0:01:26.6]} 17. O-O-O {[%clk 0:02:12.5]} 17... Qa5 {[%clk 0:01:26.6]} 18. Kb1
{[%clk 0:02:05.9]} 18... Ne4 {[%clk 0:01:20.1]} 19. Nxe4 {[%clk 0:01:52.7]}
19... dxe4 {[%clk 0:01:21]} 20. Qa3 {[%clk 0:01:53.1]} 20... Qxa3 {[%clk
0:01:21.4]} 21. bxa3 {[%clk 0:01:54]} 21... h4 {[%clk 0:01:04]} 22. g4 {[%clk
0:01:53.4]} 22... Bh6 {[%clk 0:01:01.8]} 23. Bc4 {[%clk 0:01:49.9]} 23... Bd5
{[%clk 0:00:34.9]} 24. Bb3 {[%clk 0:01:41.8]} 24... Rg8 {[%clk 0:00:32.9]} 25.
c4 {[%clk 0:01:41]} 25... Be6 {[%clk 0:00:30]} 26. d5 {[%clk 0:01:41.6]} 26...
Rg5 {[%clk 0:00:22.3]} 27. Nxc6 {[%clk 0:01:15.3]} 27... Bxg4 {[%clk 0:00:20.4]}
28. hxg4 {[%clk 0:01:13.1]} 28... bxc6 {[%clk 0:00:20.8]} 29. Rxh4 {[%clk
0:01:13.5]} 29... Bg7 {[%clk 0:00:19.8]} 30. dxc6 {[%clk 0:01:00.3]} 30... Rc8
{[%clk 0:00:12.7]} 31. Rd5 {[%clk 0:00:52.7]} 31... Rg6 {[%clk 0:00:10.7]} 32.
g5 {[%clk 0:00:51.8]} 32... Kf8 {[%clk 0:00:10]} 33. Ba4 {[%clk 0:00:49.4]}
33... a6 {[%clk 0:00:05.4]} 34. Rxe4 {[%clk 0:00:48.2]} 34... e6 {[%clk
0:00:05]} 35. Rd7 {[%clk 0:00:45.5]} 35... Rxg5 {[%clk 0:00:05.2]} 36. c7 {[%clk
0:00:38.5]} 36... Bf6 {[%clk 0:00:05.7]} 37. Rf4 {[%clk 0:00:36.8]} 37... Kg7
{[%clk 0:00:06]} 38. e4 {[%clk 0:00:14.9]} 38... Rc5 {[%clk 0:00:06.1]} 39. Rg4+
{[%clk 0:00:14]} 39... Kf8 {[%clk 0:00:06.6]} 40. Rf4 {[%clk 0:00:14.1]} 40...
Be7 {[%clk 0:00:07.3]} 41. Rd3 {[%clk 0:00:07.7]} 41... R8xc7 {[%clk 0:00:06.2]}
42. Bb3 {[%clk 0:00:07.6]} 42... a5 {[%clk 0:00:06.2]} 43. Rdf3 {[%clk
0:00:08.2]} 43... Bd6 {[%clk 0:00:05.3]} 44. Rh4 {[%clk 0:00:07.5]} 44... Be5
{[%clk 0:00:05.5]} 45. Rh7 {[%clk 0:00:05.9]} 45... Rb7 {[%clk 0:00:05.3]} 46.
a4 {[%clk 0:00:06.1]} 46... Kg8 {[%clk 0:00:04.5]} 47. Rh1 {[%clk 0:00:05]}
47... Rxc4 {[%clk 0:00:04.7]} 48. Rg1+ {[%clk 0:00:05]} 48... Kf8 {[%clk
0:00:05.2]} 49. Re1 {[%clk 0:00:04.2]} 49... Rxa4 {[%clk 0:00:05.2]} 50. Rd3
{[%clk 0:00:04.6]} 50... Rab4 {[%clk 0:00:05.4]} 51. Kc2 {[%clk 0:00:02.5]}
51... a4 {[%clk 0:00:05.9]} 52. Bxe6 {[%clk 0:00:03]} 52... fxe6 {[%clk
0:00:06]} 53. Rf1+ {[%clk 0:00:03.9]} 53... Ke7 {[%clk 0:00:06.2]} 54. Kd2
{[%clk 0:00:04.4]} 54... Rb2+ {[%clk 0:00:06.5]} 55. Ke3 {[%clk 0:00:05.3]}
55... Rxa2 {[%clk 0:00:07.1]} 0-1

[Event "Early-Titled-Tuesday-Blitz-February-27-2024"]
[Site "Chess.com"]
[Date "2024.02.27"]
[Round "3"]
[White "Statham_01"]
[Black "carloseduar100"]
[Result "0-1"]
[WhiteElo "2573"]
[BlackElo "2405"]
[TimeControl "180+1"]
[EndTime "8:28:59 PST"]
[Termination "carloseduar100 won by checkmate"]

1. e4 {[%clk 0:03:00.9]} 1... e6 {[%clk 0:02:56.6]} 2. d4 {[%clk 0:03:00.5]}
2... d5 {[%clk 0:02:55.9]} 3. Nc3 {[%clk 0:02:56.1]} 3... Nf6 {[%clk 0:02:55.9]}
4. e5 {[%clk 0:02:54.8]} 4... Nfd7 {[%clk 0:02:54.1]} 5. f4 {[%clk 0:02:55.5]}
5... c5 {[%clk 0:02:54.4]} 6. Nf3 {[%clk 0:02:56.4]} 6... Nc6 {[%clk 0:02:54.5]}
7. Be3 {[%clk 0:02:57]} 7... Qb6 {[%clk 0:02:54.7]} 8. Na4 {[%clk 0:02:56.5]}
8... Qc7 {[%clk 0:02:54.8]} 9. dxc5 {[%clk 0:02:47]} 9... Qa5+ {[%clk
0:02:25.8]} 10. c3 {[%clk 0:02:43]} 10... b5 {[%clk 0:02:25.8]} 11. cxb6 {[%clk
0:02:30.8]} 11... axb6 {[%clk 0:02:25.5]} 12. b4 {[%clk 0:02:16.8]} 12... Qxa4
{[%clk 0:02:24.3]} 13. Qxa4 {[%clk 0:02:17.7]} 13... Rxa4 {[%clk 0:02:24.8]} 14.
Bb5 {[%clk 0:02:18.4]} 14... Ra3 {[%clk 0:01:15.3]} 15. Bxc6 {[%clk 0:01:48.6]}
15... Rxc3 {[%clk 0:01:13]} 16. Bxd7+ {[%clk 0:01:49.3]} 16... Bxd7 {[%clk
0:01:12.9]} 17. Bxb6 {[%clk 0:01:27.5]} 17... Bxb4 {[%clk 0:01:10.8]} 18. Kf2
{[%clk 0:01:22.5]} 18... O-O {[%clk 0:01:07.8]} 19. Rab1 {[%clk 0:01:06.9]}
19... Ba3 {[%clk 0:00:58]} 20. Nd4 {[%clk 0:01:03]} 20... Rfc8 {[%clk
0:00:56.8]} 21. Rhd1 {[%clk 0:01:00.3]} 21... g6 {[%clk 0:00:56.5]} 22. Ba5
{[%clk 0:00:53.1]} 22... R3c4 {[%clk 0:00:38]} 23. Kg3 {[%clk 0:00:48.7]} 23...
Bc5 {[%clk 0:00:34.9]} 24. Nb3 {[%clk 0:00:31.7]} 24... Be3 {[%clk 0:00:33.2]}
25. Bd2 {[%clk 0:00:25.7]} 25... Bxd2 {[%clk 0:00:18.4]} 26. Rxd2 {[%clk
0:00:26.6]} 26... Rc3+ {[%clk 0:00:17.9]} 27. Kh4 {[%clk 0:00:21.6]} 27... Ba4
{[%clk 0:00:17.4]} 28. Nd4 {[%clk 0:00:19]} 28... Kg7 {[%clk 0:00:16.9]} 29. g3
{[%clk 0:00:14]} 29... h5 {[%clk 0:00:16.8]} 30. Rb7 {[%clk 0:00:13.5]} 30...
R8c7 {[%clk 0:00:17]} 31. Rb8 {[%clk 0:00:11.3]} 31... Rc8 {[%clk 0:00:16.5]}
32. Rb4 {[%clk 0:00:10.7]} 32... Be8 {[%clk 0:00:16.3]} 33. Rdb2 {[%clk
0:00:10.6]} 33... R3c4 {[%clk 0:00:16.1]} 34. a4 {[%clk 0:00:08.1]} 34... Rxb4
{[%clk 0:00:16]} 35. Rxb4 {[%clk 0:00:09]} 35... Rc4 {[%clk 0:00:16.2]} 36. Rxc4
{[%clk 0:00:06]} 36... dxc4 {[%clk 0:00:16.4]} 37. a5 {[%clk 0:00:06.9]} 37...
c3 {[%clk 0:00:13.4]} 38. a6 {[%clk 0:00:06.7]} 38... Bc6 {[%clk 0:00:13.7]} 39.
Nxc6 {[%clk 0:00:03.1]} 39... c2 {[%clk 0:00:13.7]} 40. a7 {[%clk 0:00:04]}
40... c1=Q {[%clk 0:00:13]} 41. a8=Q {[%clk 0:00:04.7]} 41... Qd1 {[%clk
0:00:12.3]} 42. h3 {[%clk 0:00:03.3]} 42... Qf3 {[%clk 0:00:06.5]} 43. Ne7
{[%clk 0:00:03.1]} 43... Qxa8 {[%clk 0:00:06.2]} 44. f5 {[%clk 0:00:01.5]} 44...
exf5 {[%clk 0:00:06.1]} 45. g4 {[%clk 0:00:02]} 45... Qd8 {[%clk 0:00:06.2]} 46.
Kg5 {[%clk 0:00:02.9]} 46... Qxe7+ {[%clk 0:00:06.5]} 47. Kf4 {[%clk 0:00:03.8]}
47... Qb4+ {[%clk 0:00:05.9]} 48. Kg5 {[%clk 0:00:04.3]} 48... Qd2+ {[%clk
0:00:05.6]} 49. Kh4 {[%clk 0:00:04]} 49... fxg4 {[%clk 0:00:06]} 50. e6 {[%clk
0:00:04.1]} 50... Qd8+ {[%clk 0:00:05.3]} 51. e7 {[%clk 0:00:04.3]} 51... Qxe7+
{[%clk 0:00:05.7]} 52. Kg3 {[%clk 0:00:04.5]} 52... gxh3 {[%clk 0:00:06.1]} 53.
Kf4 {[%clk 0:00:05.4]} 53... Qf6+ {[%clk 0:00:06.2]} 54. Kg3 {[%clk 0:00:06.3]}
54... Qg5+ {[%clk 0:00:06.6]} 55. Kh2 {[%clk 0:00:07.2]} 55... Qg2# {[%clk
0:00:06.6]} 0-1

[Event "Early-Titled-Tuesday-Blitz-February-27-2024"]
[Site "Chess.com"]
[Date "2024.02.27"]
[Round "3"]
[White "agvega14"]
[Black "Bilan_Danila"]
[Result "0-1"]
[WhiteElo "2217"]
[BlackElo "2547"]
[TimeControl "180+1"]
[EndTime "8:28:59 PST"]
[Termination "Bilan_Danila won by checkmate"]

1. d4 {[%clk 0:03:00.9]} 1... d5 {[%clk 0:02:59.9]} 2. c4 {[%clk 0:03:00.8]}
2... c6 {[%clk 0:03:00.4]} 3. Nc3 {[%clk 0:03:00.9]} 3... Nf6 {[%clk 0:03:00.6]}
4. e3 {[%clk 0:03:01.1]} 4... g6 {[%clk 0:02:54.3]} 5. Nf3 {[%clk 0:02:56.6]}
5... Bg7 {[%clk 0:02:54.3]} 6. h3 {[%clk 0:02:56.5]} 6... O-O {[%clk 0:02:52.2]}
7. Qb3 {[%clk 0:02:55.3]} 7... dxc4 {[%clk 0:02:48.3]} 8. Bxc4 {[%clk
0:02:55.2]} 8... b5 {[%clk 0:02:49]} 9. Be2 {[%clk 0:02:52.3]} 9... a6 {[%clk
0:02:48.6]} 10. a4 {[%clk 0:02:48.9]} 10... Bb7 {[%clk 0:02:46.2]} 11. Bd2
{[%clk 0:02:46.4]} 11... Nbd7 {[%clk 0:02:42.9]} 12. O-O {[%clk 0:02:42.9]}
12... Re8 {[%clk 0:02:10.2]} 13. Ng5 {[%clk 0:02:39.5]} 13... e6 {[%clk
0:02:03.6]} 14. Bf3 {[%clk 0:02:35.4]} 14... Nd5 {[%clk 0:01:54.2]} 15. Nge4
{[%clk 0:02:32.5]} 15... b4 {[%clk 0:01:47.2]} 16. Nxd5 {[%clk 0:02:25.5]} 16...
cxd5 {[%clk 0:01:38.9]} 17. Nd6 {[%clk 0:02:25.6]} 17... a5 {[%clk 0:01:19.2]}
18. Nxb7 {[%clk 0:02:23.5]} 18... Qb6 {[%clk 0:01:18.8]} 19. Nc5 {[%clk
0:02:20.1]} 19... Nxc5 {[%clk 0:01:13.1]} 20. dxc5 {[%clk 0:02:20.2]} 20... Qxc5
{[%clk 0:01:13.8]} 21. Rac1 {[%clk 0:02:20.2]} 21... Qe7 {[%clk 0:01:11.3]} 22.
Rc6 {[%clk 0:02:12]} 22... h5 {[%clk 0:01:07.4]} 23. Rfc1 {[%clk 0:02:11.4]}
23... Qf6 {[%clk 0:01:08.1]} 24. R1c2 {[%clk 0:02:03.3]} 24... Red8 {[%clk
0:01:07.3]} 25. Bc1 {[%clk 0:01:39.8]} 25... Rd7 {[%clk 0:01:01.1]} 26. Qd3
{[%clk 0:01:35.3]} 26... Rad8 {[%clk 0:00:55.7]} 27. b3 {[%clk 0:01:33.8]} 27...
d4 {[%clk 0:00:35.2]} 28. e4 {[%clk 0:01:30.7]} 28... Qe7 {[%clk 0:00:26.4]} 29.
Bf4 {[%clk 0:01:21.2]} 29... e5 {[%clk 0:00:24.8]} 30. Bd2 {[%clk 0:01:18.7]}
30... Rd6 {[%clk 0:00:24.4]} 31. Rc7 {[%clk 0:01:12.3]} 31... R6d7 {[%clk
0:00:22.8]} 32. R7c5 {[%clk 0:01:10.2]} 32... Ra7 {[%clk 0:00:20.1]} 33. Be2
{[%clk 0:01:03.9]} 33... Bf6 {[%clk 0:00:20.2]} 34. Qf3 {[%clk 0:01:01.2]} 34...
Bg5 {[%clk 0:00:19.8]} 35. Bb5 {[%clk 0:00:55.8]} 35... Bxd2 {[%clk 0:00:15.5]}
36. Rc8 {[%clk 0:00:51.8]} 36... Bc3 {[%clk 0:00:14.2]} 37. Rxd8+ {[%clk
0:00:48.9]} 37... Qxd8 {[%clk 0:00:15.1]} 38. Bc4 {[%clk 0:00:46.5]} 38... Kg7
{[%clk 0:00:15.5]} 39. Rc1 {[%clk 0:00:42.2]} 39... Rc7 {[%clk 0:00:15.2]} 40.
Qd3 {[%clk 0:00:41.7]} 40... Qg5 {[%clk 0:00:15.2]} 41. Rd1 {[%clk 0:00:40.9]}
41... Rc6 {[%clk 0:00:13.8]} 42. Bd5 {[%clk 0:00:39.4]} 42... Rf6 {[%clk
0:00:13.4]} 43. Rf1 {[%clk 0:00:37.5]} 43... Qf4 {[%clk 0:00:13.4]} 44. Bc4
{[%clk 0:00:31.9]} 44... g5 {[%clk 0:00:13.5]} 45. Bd5 {[%clk 0:00:28.2]} 45...
g4 {[%clk 0:00:13.7]} 46. h4 {[%clk 0:00:24.1]} 46... g3 {[%clk 0:00:13]} 47.
fxg3 {[%clk 0:00:21.6]} 47... Qh6 {[%clk 0:00:05.7]} 48. Rxf6 {[%clk 0:00:20.1]}
48... Qxf6 {[%clk 0:00:05.5]} 49. Qf3 {[%clk 0:00:19.1]} 49... Qe7 {[%clk
0:00:04]} 50. Qxh5 {[%clk 0:00:17.9]} 50... Bd2 {[%clk 0:00:04]} 51. Qf5 {[%clk
0:00:17.4]} 51... Bh6 {[%clk 0:00:04.2]} 52. g4 {[%clk 0:00:16.7]} 52... Bf4
{[%clk 0:00:04.8]} 53. g5 {[%clk 0:00:16]} 53... d3 {[%clk 0:00:05.5]} 54. Qg4
{[%clk 0:00:13.7]} 54... d2 {[%clk 0:00:05.6]} 55. Qd1 {[%clk 0:00:13]} 55...
Qc7 {[%clk 0:00:05.4]} 56. Bc4 {[%clk 0:00:13]} 56... Qc5+ {[%clk 0:00:05.7]}
57. Kh1 {[%clk 0:00:13.3]} 57... Qf2 {[%clk 0:00:06]} 58. Be2 {[%clk 0:00:13.3]}
58... Qxh4+ {[%clk 0:00:06.1]} 59. Kg1 {[%clk 0:00:13.6]} 59... Be3+ {[%clk
0:00:06.8]} 60. Kf1 {[%clk 0:00:12.6]} 60... Qf2# {[%clk 0:00:07.5]} 0-1

[Event "Early-Titled-Tuesday-Blitz-February-27-2024"]
[Site "Chess.com"]
[Date "2024.02.27"]
[Round "3"]
[White "ljuks68"]
[Black "Orion2127989"]
[Result "1-0"]
[WhiteElo "2411"]
[BlackElo "2157"]
[TimeControl "180+1"]
[EndTime "8:28:59 PST"]
[Termination "ljuks68 won by resignation"]

1. e4 {[%clk 0:02:53.9]} 1... c5 {[%clk 0:02:59.6]} 2. Nf3 {[%clk 0:02:53.7]}
2... d6 {[%clk 0:02:59.7]} 3. d4 {[%clk 0:02:54.2]} 3... cxd4 {[%clk 0:02:59.6]}
4. Nxd4 {[%clk 0:02:54.9]} 4... Nf6 {[%clk 0:02:59.9]} 5. Nc3 {[%clk 0:02:55.5]}
5... a6 {[%clk 0:03:00.1]} 6. Bg5 {[%clk 0:02:55.7]} 6... e6 {[%clk 0:02:59.6]}
7. f4 {[%clk 0:02:56.3]} 7... Be7 {[%clk 0:02:59.2]} 8. Qf3 {[%clk 0:02:56.3]}
8... Qc7 {[%clk 0:02:59]} 9. O-O-O {[%clk 0:02:56.4]} 9... h6 {[%clk 0:02:58.8]}
10. Bxf6 {[%clk 0:02:49.8]} 10... Bxf6 {[%clk 0:02:58.4]} 11. g4 {[%clk
0:02:50.3]} 11... Nc6 {[%clk 0:02:45.3]} 12. Nb3 {[%clk 0:02:45.6]} 12... b5
{[%clk 0:02:38.9]} 13. h4 {[%clk 0:02:42.2]} 13... Bb7 {[%clk 0:02:35.7]} 14. g5
{[%clk 0:02:40.6]} 14... hxg5 {[%clk 0:02:35.5]} 15. hxg5 {[%clk 0:02:38.3]}
15... Rxh1 {[%clk 0:02:36.4]} 16. Qxh1 {[%clk 0:02:20.9]} 16... Bxc3 {[%clk
0:02:24.7]} 17. bxc3 {[%clk 0:02:21.1]} 17... O-O-O {[%clk 0:02:23.5]} 18. Qh7
{[%clk 0:02:07.9]} 18... g6 {[%clk 0:02:22.9]} 19. Kb2 {[%clk 0:01:56.3]} 19...
b4 {[%clk 0:02:09.5]} 20. cxb4 {[%clk 0:01:34.9]} 20... Nxb4 {[%clk 0:02:03.8]}
21. Bd3 {[%clk 0:01:35.4]} 21... d5 {[%clk 0:01:52.5]} 22. e5 {[%clk 0:01:27.7]}
22... d4 {[%clk 0:01:44.7]} 23. Qh4 {[%clk 0:01:12.1]} 23... Qc3+ {[%clk
0:01:40.8]} 24. Kb1 {[%clk 0:01:09.8]} 24... Bd5 {[%clk 0:00:50.5]} 25. Qe1
{[%clk 0:01:05.5]} 25... Bxb3 {[%clk 0:00:45.4]} 26. axb3 {[%clk 0:00:44.4]}
26... Qc5 {[%clk 0:00:41.2]} 27. Kb2 {[%clk 0:00:32.6]} 27... Kc7 {[%clk
0:00:24.7]} 28. Qd2 {[%clk 0:00:19.7]} 28... Kb6 {[%clk 0:00:22.7]} 29. Ra1
{[%clk 0:00:17.6]} 29... Rc8 {[%clk 0:00:20]} 30. Ra4 {[%clk 0:00:13.3]} 30...
Qc3+ {[%clk 0:00:18.9]} 31. Qxc3 {[%clk 0:00:13.2]} 31... dxc3+ {[%clk
0:00:19.3]} 32. Kc1 {[%clk 0:00:11.5]} 32... Nxd3+ {[%clk 0:00:19.4]} 33. cxd3
{[%clk 0:00:10.8]} 33... a5 {[%clk 0:00:18.4]} 34. Kc2 {[%clk 0:00:10.4]} 34...
Kb5 {[%clk 0:00:17.9]} 35. Rd4 {[%clk 0:00:07]} 35... Rc5 {[%clk 0:00:11.3]} 36.
Rd7 {[%clk 0:00:06.3]} 36... Kb4 {[%clk 0:00:08.4]} 37. Rb7+ {[%clk 0:00:06.4]}
37... Ka3 {[%clk 0:00:08.6]} 38. Rxf7 {[%clk 0:00:06.6]} 38... Rb5 {[%clk
0:00:07.1]} 39. Kxc3 {[%clk 0:00:06.2]} 39... Rxb3+ {[%clk 0:00:08]} 40. Kd4
{[%clk 0:00:06.6]} 40... a4 {[%clk 0:00:08.3]} 41. Kc5 {[%clk 0:00:05.7]} 41...
Rc3+ {[%clk 0:00:08.4]} 42. Kd6 {[%clk 0:00:05.8]} 42... Kb2 {[%clk 0:00:07.9]}
43. Kxe6 {[%clk 0:00:06]} 43... a3 {[%clk 0:00:08.2]} 44. Ra7 {[%clk 0:00:05.9]}
44... a2 {[%clk 0:00:08.2]} 45. Rxa2+ {[%clk 0:00:06.5]} 45... Kxa2 {[%clk
0:00:09]} 46. d4 {[%clk 0:00:07.1]} 46... Rf3 {[%clk 0:00:08.7]} 47. d5 {[%clk
0:00:07.1]} 47... Rxf4 {[%clk 0:00:08.9]} 48. d6 {[%clk 0:00:07.8]} 48... Rd4
{[%clk 0:00:09.1]} 49. d7 {[%clk 0:00:08]} 49... Kb3 {[%clk 0:00:09.1]} 50. Ke7
{[%clk 0:00:08.4]} 50... Kc4 {[%clk 0:00:08.8]} 51. e6 {[%clk 0:00:05.6]} 51...
Kc5 {[%clk 0:00:08.7]} 52. Kf7 {[%clk 0:00:04.7]} 52... Kc6 {[%clk 0:00:07.5]}
53. Ke8 {[%clk 0:00:04]} 53... Re4 {[%clk 0:00:05.5]} 54. e7 {[%clk 0:00:03.6]}
54... Kd6 {[%clk 0:00:03.8]} 55. d8=Q+ {[%clk 0:00:03.8]} 1-0

[Event "Early-Titled-Tuesday-Blitz-February-27-2024"]
[Site "Chess.com"]
[Date "2024.02.27"]
[Round "3"]
[White "janhelmer03"]
[Black "burbur555"]
[Result "1-0"]
[WhiteElo "2331"]
[BlackElo "2552"]
[TimeControl "180+1"]
[EndTime "8:29:00 PST"]
[Termination "janhelmer03 won on time"]

1. d4 {[%clk 0:02:58.8]} 1... c6 {[%clk 0:03:00.9]} 2. Nf3 {[%clk 0:02:46.1]}
2... d5 {[%clk 0:03:01.4]} 3. c4 {[%clk 0:02:46.3]} 3... Nf6 {[%clk 0:03:00.7]}
4. cxd5 {[%clk 0:02:33.3]} 4... cxd5 {[%clk 0:03:00]} 5. Nc3 {[%clk 0:02:33.8]}
5... e6 {[%clk 0:02:56.2]} 6. Bf4 {[%clk 0:02:04.8]} 6... Bd6 {[%clk 0:02:54.7]}
7. Bxd6 {[%clk 0:02:03.9]} 7... Qxd6 {[%clk 0:02:54.7]} 8. e3 {[%clk 0:02:04.8]}
8... a6 {[%clk 0:02:54.1]} 9. Bd3 {[%clk 0:02:05.3]} 9... b5 {[%clk 0:02:53.5]}
10. O-O {[%clk 0:02:05.8]} 10... Bb7 {[%clk 0:02:53.2]} 11. Ne5 {[%clk
0:02:05.6]} 11... Nbd7 {[%clk 0:02:52.8]} 12. f4 {[%clk 0:02:05.9]} 12... Nb6
{[%clk 0:02:50.1]} 13. Rc1 {[%clk 0:02:04]} 13... O-O {[%clk 0:02:49]} 14. Qf3
{[%clk 0:01:50.9]} 14... Rac8 {[%clk 0:02:41.6]} 15. a3 {[%clk 0:01:43.5]} 15...
Nc4 {[%clk 0:02:39]} 16. Nxc4 {[%clk 0:01:41]} 16... bxc4 {[%clk 0:02:38.4]} 17.
Bb1 {[%clk 0:01:40.7]} 17... Nd7 {[%clk 0:02:29.5]} 18. Qh3 {[%clk 0:01:25.3]}
18... f5 {[%clk 0:02:28.2]} 19. g4 {[%clk 0:01:25.6]} 19... g6 {[%clk
0:02:28.1]} 20. gxf5 {[%clk 0:01:25.6]} 20... exf5 {[%clk 0:02:27.5]} 21. Qg3
{[%clk 0:01:21.7]} 21... Kh8 {[%clk 0:02:22.5]} 22. h4 {[%clk 0:01:20.5]} 22...
Nf6 {[%clk 0:02:21.9]} 23. Kg2 {[%clk 0:01:18.6]} 23... Rce8 {[%clk 0:02:19.2]}
24. Rce1 {[%clk 0:01:17.9]} 24... Re6 {[%clk 0:02:10.7]} 25. Bc2 {[%clk
0:01:15.2]} 25... Rfe8 {[%clk 0:02:09.9]} 26. Na4 {[%clk 0:01:02]} 26... Ng4
{[%clk 0:02:07.1]} 27. Rf3 {[%clk 0:01:01]} 27... R6e7 {[%clk 0:01:53.9]} 28.
Nc5 {[%clk 0:01:00.4]} 28... Bc8 {[%clk 0:01:50.9]} 29. Ba4 {[%clk 0:00:52.9]}
29... Rg8 {[%clk 0:01:44.3]} 30. Rff1 {[%clk 0:00:47.9]} 30... Nf6 {[%clk
0:01:28.3]} 31. Bd1 {[%clk 0:00:46.7]} 31... Ne4 {[%clk 0:01:27.3]} 32. Nxe4
{[%clk 0:00:44.3]} 32... fxe4 {[%clk 0:01:19.2]} 33. Rh1 {[%clk 0:00:42]} 33...
Rb7 {[%clk 0:01:16.1]} 34. Re2 {[%clk 0:00:41]} 34... h5 {[%clk 0:01:12.5]} 35.
Qg5 {[%clk 0:00:39.8]} 35... Kh7 {[%clk 0:01:05.9]} 36. Rf2 {[%clk 0:00:38.6]}
36... Rf7 {[%clk 0:00:51.9]} 37. Kh2 {[%clk 0:00:37.7]} 37... Rf5 {[%clk
0:00:51.3]} 38. Qg3 {[%clk 0:00:37.7]} 38... Qe7 {[%clk 0:00:48.6]} 39. Rg1
{[%clk 0:00:37.1]} 39... Rf7 {[%clk 0:00:47.9]} 40. Rfg2 {[%clk 0:00:33.4]}
40... Rfg7 {[%clk 0:00:46]} 41. Qg5 {[%clk 0:00:31.4]} 41... Qxg5 {[%clk
0:00:43.6]} 42. Rxg5 {[%clk 0:00:32.3]} 42... Rb7 {[%clk 0:00:24.6]} 43. R1g2
{[%clk 0:00:29.7]} 43... Bf5 {[%clk 0:00:16.4]} 44. Bxh5 {[%clk 0:00:29.5]}
44... Rb6 {[%clk 0:00:14]} 45. Bxg6+ {[%clk 0:00:12.2]} 45... Bxg6 {[%clk
0:00:12.5]} 46. Rxd5 {[%clk 0:00:09.4]} 46... Rgb8 {[%clk 0:00:10.8]} 47. h5
{[%clk 0:00:09.1]} 47... Be8 {[%clk 0:00:09.4]} 48. Re5 {[%clk 0:00:06.4]} 48...
Rxb2 {[%clk 0:00:07.7]} 49. Re7+ {[%clk 0:00:06.3]} 49... Kh6 {[%clk 0:00:06.6]}
50. Rxb2 {[%clk 0:00:03.5]} 50... Rxb2+ {[%clk 0:00:05.2]} 51. Kg3 {[%clk
0:00:04.4]} 51... Bb5 {[%clk 0:00:03.9]} 52. Rxe4 {[%clk 0:00:03.1]} 52... c3
{[%clk 0:00:00.7]} 53. Re6+ {[%clk 0:00:03.8]} 1-0